fUST/lending_fUST_20240624
["ID","MTS","AMOUNT","RATE_DAILY","PERIOD"]
[330282037,1719227441632,-1268.41937026,0.00015501,2]
[330282300,1719227445915,-0.00726417,0.00015501,2]
[330283972,1719227579229,157.62,0.000224,31]
[330283973,1719227579285,157.62,0.000224,31]
[330283974,1719227579335,157.62,0.000224,31]
[330283975,1719227579404,157.62,0.000224,31]
[330283976,1719227599441,3000.0,0.000225,30]
[330283977,1719227668851,1000.0,0.00016,10]
[330283978,1719227680983,1000.0,0.00017,11]
[330283979,1719227689984,1000.0,0.00018,12]
[330283980,1719227711512,1000.0,0.00019,13]
[330283981,1719227776078,500.1425744,0.00015,2]
[330283982,1719227834252,287.09196786,0.00015,2]
[330283983,1719227856428,10589.6373296,0.00014329,2]
[330283986,1719228113279,7171.41833998,0.0002,15]
[330283988,1719228179026,8421.09053132,0.00015075,2]
[330283989,1719228181124,157.65,0.000224,31]
[330283990,1719228181183,157.65,0.000224,31]
[330283991,1719228181404,157.65,0.000224,31]
[330283992,1719228181454,157.65,0.000224,31]
[330283993,1719228197013,3000.0,0.000225,30]
[330283995,1719228252316,3312.0,0.00026,120]
[330283996,1719228301294,300.0,0.00015,2]
[330283997,1719228303740,300.0,0.00015,2]
[330283998,1719228320189,8048.48038456,0.00015,2]
[330283999,1719228320216,50000.0,0.00015,2]
[330284000,1719228457028,1568.63,0.0002,10]
[330284003,1719228570175,-300.0,0.00014999,2]
[330284004,1719228570242,-224.0,0.00014999,2]
[330284005,1719228570301,-119.60764115,0.00015,2]
[330284006,1719228570374,-643.60764115,0.00015,2]
[330284007,1719228570444,-298.86369717,0.00015,2]
[330284008,1719228595294,-675.32922074,0.00015,2]
[330284009,1719228595422,-675.32922074,0.00015,2]
[330284032,1719228636429,-300.0,0.00014999,2]
[330284034,1719228636439,-23625.45134944,0.00015,2]
[330284038,1719228639713,-516.6151856,0.00015,2]
[330284040,1719228639727,-5422.4355242,0.00015,2]
[330284041,1719228639740,-287.09196786,0.00015,2]
[330284042,1719228639755,-500.0,0.00015122,2]
[330284043,1719228639766,-5278.8466527,0.00015258,2]
[330284044,1719228639776,-6611.60818364,0.00015267,2]
[330284045,1719228639786,-1000.0,0.00015438,2]
[330284046,1719228639797,-1000.0,0.00015438,2]
[330284047,1719228639808,-1000.0,0.00015438,2]
[330284048,1719228639818,-1000.0,0.00015438,2]
[330284049,1719228639828,-719.79009237,0.0001547,2]
[330284050,1719228639839,-2040.81356743,0.00015587,2]
[330284051,1719228639850,-2647.51345546,0.00015615,2]
[330284052,1719228639861,-307.5621653,0.000157,2]
[330284054,1719228639872,-1117.74863961,0.00015838,2]
[330284056,1719228639883,-1487.2316115,0.00015838,2]
[330284057,1719228639893,-3531.481117,0.000159,2]
[330284059,1719228639904,-151.0,0.000159,2]
[330284060,1719228639914,-151.0,0.000159,2]
[330284061,1719228639925,-627.946196,0.000159,2]
[330284063,1719228639935,-627.946196,0.000159,2]
[330284065,1719228639946,-151.0,0.000159,2]
[330284067,1719228639957,-247.237692,0.000159,2]
[330284069,1719228639967,-151.0,0.000159,2]
[330284071,1719228639978,-151.0,0.000159,2]
[330284073,1719228639988,-8223.761611,0.000159,2]
[330284075,1719228640003,-8223.761611,0.000159,2]
[330284077,1719228640013,-151.0,0.000159,2]
[330284079,1719228640024,-151.0,0.000159,2]
[330284081,1719228640034,-151.0,0.000159,2]
[330284083,1719228640046,-151.0,0.000159,2]
[330284085,1719228640056,-165.528647,0.000159,2]
[330284087,1719228640066,-165.528647,0.000159,2]
[330284089,1719228640077,-165.528647,0.000159,2]
[330284091,1719228640087,-165.528647,0.000159,2]
[330284093,1719228640097,-183.646373,0.000159,2]
[330284095,1719228640107,-183.646373,0.000159,2]
[330284097,1719228640117,-183.646373,0.000159,2]
[330284099,1719228640128,-183.646373,0.000159,2]
[330284101,1719228640139,-183.646373,0.000159,2]
[330284103,1719228640149,-183.646373,0.000159,2]
[330284105,1719228640159,-183.646373,0.000159,2]
[330284107,1719228640170,-183.646373,0.000159,2]
[330284109,1719228640180,-151.0,0.000159,2]
[330284111,1719228640190,-151.0,0.000159,2]
[330284113,1719228640201,-151.0,0.000159,2]
[330284115,1719228640211,-151.0,0.000159,2]
[330284117,1719228640222,-151.0,0.000159,2]
[330284119,1719228640232,-151.0,0.000159,2]
[330284121,1719228640242,-3147.104559,0.000159,2]
[330284123,1719228640257,-1563.17474171,0.000159,2]
[330284350,1719228642733,-7531.2741059,0.00015,2]
[330284351,1719228642747,-1583.92981729,0.000159,2]
[330284353,1719228642758,-3147.104559,0.000159,2]
[330284355,1719228642768,-3147.104559,0.000159,2]
[330284357,1719228642779,-3147.104559,0.000159,2]
[330284359,1719228642789,-3147.104559,0.000159,2]
[330284361,1719228642799,-307.575844,0.000159,2]
[330284363,1719228642808,-307.575844,0.000159,2]
[330284365,1719228642818,-307.575844,0.000159,2]
[330284367,1719228642829,-307.575844,0.000159,2]
[330284369,1719228642839,-307.575844,0.000159,2]
[330284371,1719228642850,-307.575844,0.000159,2]
[330284373,1719228642860,-151.0,0.000159,2]
[330284375,1719228642870,-151.0,0.000159,2]
[330284377,1719228642880,-151.0,0.000159,2]
[330284379,1719228642890,-151.0,0.000159,2]
[330284381,1719228642900,-151.0,0.000159,2]
[330284383,1719228642910,-151.0,0.000159,2]
[330284385,1719228642920,-151.0,0.000159,2]
[330284387,1719228642930,-151.0,0.000159,2]
[330284389,1719228642941,-171.435602,0.000159,2]
[330284391,1719228642951,-1942.47215097,0.00015931,2]
[330284393,1719228642961,-1102.94117698,0.00015999,2]
[330284395,1719228642970,-657.25609778,0.00016,2]
[330284397,1719228642980,-402.64531294,0.00016001,2]
[330284399,1719228642990,-2000.0,0.00016025,2]
[330284401,1719228643005,-627.946196,0.00016025,2]
[330284403,1719228643015,-627.946196,0.00016025,2]
[330284405,1719228643025,-151.0,0.00016025,2]
[330284407,1719228643035,-151.0,0.00016025,2]
[330284409,1719228643044,-151.0,0.00016025,2]
[330284411,1719228643056,-8223.761611,0.00016025,2]
[330284413,1719228643067,-8223.761611,0.00016025,2]
[330284415,1719228643078,-151.867259,0.00016025,2]
[330284417,1719228643088,-151.0,0.00016025,2]
[330284419,1719228643099,-165.659502,0.00016025,2]
[330284421,1719228643108,-165.528647,0.00016025,2]
[330284423,1719228643118,-165.528647,0.00016025,2]
[330284425,1719228643128,-165.528647,0.00016025,2]
[330284427,1719228643139,-165.528647,0.00016025,2]
[330284429,1719228643152,-183.646373,0.00016025,2]
[330284431,1719228643162,-183.646373,0.00016025,2]
[330284433,1719228643172,-183.646373,0.00016025,2]
[330284435,1719228643182,-183.646373,0.00016025,2]
[330284437,1719228643192,-183.646373,0.00016025,2]
[330284439,1719228643203,-183.646373,0.00016025,2]
[330284441,1719228643213,-183.646373,0.00016025,2]
[330284443,1719228643223,-183.646373,0.00016025,2]
[330284445,1719228643233,-151.0,0.00016025,2]
[330284447,1719228643244,-151.0,0.00016025,2]
[330284449,1719228643256,-151.0,0.00016025,2]
[330284451,1719228643266,-151.0,0.00016025,2]
[330284453,1719228643276,-151.0,0.00016025,2]
[330284455,1719228643286,-258.689549,0.00016025,2]
[330284457,1719228643297,-3147.104559,0.00016025,2]
[330284459,1719228643307,-3147.104559,0.00016025,2]
[330284461,1719228643317,-3147.104559,0.00016025,2]
[330284463,1719228643327,-3147.104559,0.00016025,2]
[330284464,1719228643338,-3147.104559,0.00016025,2]
[330284466,1719228643348,-3147.104559,0.00016025,2]
[330284468,1719228643358,-3147.104559,0.00016025,2]
[330284470,1719228643369,-3147.104559,0.00016025,2]
[330284472,1719228643379,-307.575844,0.00016025,2]
[330284474,1719228643389,-307.575844,0.00016025,2]
[330284476,1719228643398,-307.575844,0.00016025,2]
[330284478,1719228643408,-307.575844,0.00016025,2]
[330284480,1719228643417,-307.575844,0.00016025,2]
[330284482,1719228643427,-307.575844,0.00016025,2]
[330284484,1719228643438,-307.575844,0.00016025,2]
[330284486,1719228643448,-307.575844,0.00016025,2]
[330284488,1719228643458,-151.0,0.00016043,2]
[330284490,1719228643468,-10562.28786365,0.00016043,2]
[330284492,1719228643478,-2129.2320514,0.00016084,2]
[330284494,1719228643488,-1000.0,0.0001609,2]
[330284496,1719228643500,-151.0,0.0001609,2]
[330284498,1719228643509,-151.0,0.0001609,2]
[330284500,1719228643524,-627.946196,0.0001609,2]
[330284502,1719228643535,-627.946196,0.0001609,2]
[330284504,1719228643544,-151.0,0.0001609,2]
[330284506,1719228643554,-151.0,0.0001609,2]
[330284508,1719228643565,-151.0,0.0001609,2]
[330284510,1719228643574,-154.831503,0.0001609,2]
[330284512,1719228643584,-2399.3956091,0.0001609,2]
[330284723,1719228645270,-289.89676959,0.00015784,2]
[330284738,1719228645411,-827.85187002,0.00015784,2]
[330284740,1719228645420,-152.930275,0.000159,2]
[330284742,1719228645430,-30.17176853,0.0001609,2]
[330284745,1719228645442,-4122.65285401,0.0001609,2]
[330284795,1719228648154,-305.47,0.00015468,2]
[330284873,1719228783177,157.74,0.000224,31]
[330284874,1719228783232,157.74,0.000224,31]
[330284875,1719228783296,157.74,0.000224,31]
[330284876,1719228783361,157.74,0.000224,31]
[330284877,1719228797354,3000.0,0.000225,30]
[330284895,1719229045406,2642.14961828,0.000225,30]
[330284905,1719229408307,-304.132991,0.00014585,2]
[330284907,1719229433710,3000.0,0.000225,30]
[330284909,1719229520927,1200.14898631,0.00016192,7]
[330284912,1719229579996,399.88338465,0.00015,2]
[330284917,1719229652843,287.09196786,0.00015,2]
[330284918,1719229658114,154.80649189,0.00015,2]
[330284921,1719229755842,287.09196786,0.00015,2]
[330284954,1719229837930,-2647.51345546,0.00015009,2]
[330284955,1719229837941,-500.0,0.00015122,2]
[330284957,1719229837954,-300.0,0.0001539,2]
[330284959,1719229837965,-10562.28786365,0.00015391,2]
[330284960,1719229837975,-549.71041124,0.00015615,2]
[330284962,1719229837989,-627.00448647,0.00015635,2]
[330284964,1719229837999,-159.35965211,0.00015635,2]
[330284966,1719229838010,-195.47966853,0.00015661,2]
[330284967,1719229838021,-303.87453026,0.00015691,2]
[330284968,1719229838031,-490.28883306,0.00015783,2]
[330284969,1719229838042,-154.80649189,0.00015783,2]
[330284970,1719229838051,-990.65106447,0.00015785,2]
[330284971,1719229838062,-527.30607282,0.00015786,2]
[330284975,1719229838108,-572.32939222,0.00015786,2]
[330284976,1719229838121,-4179.21118766,0.00015786,2]
[330284977,1719229838133,-1568.46393602,0.00015881,2]
[330284978,1719229838143,-457.45943987,0.00015886,2]
[330284979,1719229838152,-164.81209326,0.00015887,2]
[330284980,1719229838163,-947.4992689,0.00015899,2]
[330284981,1719229838173,-2731.76686712,0.00015899,2]
[330284982,1719229838183,-239.56788705,0.00015923,2]
[330284983,1719229838194,-1617.05277074,0.00015924,2]
[330284984,1719229838203,-329.92561575,0.00015971,2]
[330285047,1719229843963,-164.81209326,0.00015885,2]
[330285048,1719229843973,-1287.12715497,0.00015971,2]
[330285050,1719229843983,-11316.32164793,0.00015997,2]
[330285065,1719229847263,-137.83140705,0.00015997,2]
[330285066,1719229847273,-154.80649189,0.00015998,2]
[330285067,1719229847283,-208.78500633,0.00015998,2]
[330285068,1719229847292,-1000.0,0.00015999,2]
[330285069,1719229847302,-1000.0,0.00015999,2]
[330285070,1719229847311,-565.7746747,0.00015999,2]
[330285071,1719229847321,-144.94577814,0.00015999,2]
[330285073,1719229854223,287.09196786,0.00015,2]
[330285074,1719229871461,300.0,0.0002501,59]
[330285075,1719229890462,318.1024,0.0002501,59]
[330285079,1719230001474,3000.0,0.000225,30]
[330285082,1719230130156,500.0,0.00015,2]
[330285085,1719230138519,558.5063079,0.00014939,2]
[330285088,1719230160386,500.0,0.00015,2]
[330285090,1719230193007,287.09196786,0.00015,2]
[330285092,1719230287872,287.09196786,0.00015,2]
[330285093,1719230317876,287.09196786,0.00015,2]
[330285095,1719230550590,273.37336231,9.9e-05,2]
[330285096,1719230559192,273.37336231,9.9e-05,2]
[330285097,1719230567515,273.37336231,9.9e-05,2]
[330285098,1719230576127,273.37336231,9.9e-05,2]
[330285099,1719230584263,273.37336231,9.9e-05,2]
[330285100,1719230592572,273.37336231,9.9e-05,2]
[330285101,1719230595246,3000.0,0.000225,30]
[330285102,1719230600691,273.37336231,9.9e-05,2]
[330285103,1719230610395,273.37336231,9.9e-05,2]
[330285104,1719230618531,273.37336231,9.9e-05,2]
[330285105,1719230626909,273.37336231,9.9e-05,2]
[330285106,1719230635024,273.37336231,9.9e-05,2]
[330285107,1719230644010,273.37336231,9.9e-05,2]
[330285108,1719230652405,273.37336231,9.9e-05,2]
[330285109,1719230655568,530.94,0.00010959,2]
[330285110,1719230660700,273.37336231,9.9e-05,2]
[330285111,1719230664886,154.80649189,0.00012,2]
[330285112,1719230666000,442.45,0.00010959,2]
[330285113,1719230676314,273.37336231,9.9e-05,2]
[330285115,1719230684930,273.37336231,9.9e-05,2]
[330285117,1719230693850,273.37336231,9.9e-05,2]
[330285119,1719230701870,273.37336231,9.9e-05,2]
[330285120,1719230711467,273.37336231,9.9e-05,2]
[330285121,1719230714890,309.58206422,0.00012,2]
[330285122,1719230719994,273.37336231,9.9e-05,2]
[330285124,1719230728467,273.37336231,9.9e-05,2]
[330285125,1719230736521,273.37336231,9.9e-05,2]
[330285126,1719230746485,273.37336231,9.9e-05,2]
[330285127,1719230754552,273.37336231,9.9e-05,2]
[330285128,1719230763206,273.37336231,9.9e-05,2]
[330285129,1719230765487,4689.21379075,0.00014545,2]
[330285130,1719230772679,273.37336231,9.9e-05,2]
[330285133,1719230778850,2000.0,0.0002,10]
[330285134,1719230780803,273.37336231,9.9e-05,2]
[330285135,1719230789482,273.37336231,9.9e-05,2]
[330285136,1719230797851,273.37336231,9.9e-05,2]
[330285138,1719230806602,273.37336231,9.9e-05,2]
[330285140,1719230815551,273.37336231,9.9e-05,2]
[330285141,1719230824407,273.37336231,9.9e-05,2]
[330285142,1719230824489,4689.21379075,0.00012,2]
[330285143,1719230834059,273.37336231,9.9e-05,2]
[330285144,1719230842731,273.37336231,9.9e-05,2]
[330285146,1719230846302,269.6595478,0.00012,7]
[330285148,1719230851623,273.37336231,9.9e-05,2]
[330285150,1719230859842,273.37336231,9.9e-05,2]
[330285151,1719230868168,273.37336231,9.9e-05,2]
[330285152,1719230876919,273.37336231,9.9e-05,2]
[330285153,1719230885373,273.37336231,9.9e-05,2]
[330285154,1719230893809,273.37336231,9.9e-05,2]
[330285155,1719230902595,273.37336231,9.9e-05,2]
[330285156,1719230910710,273.37336231,9.9e-05,2]
[330285157,1719230919778,273.37336231,9.9e-05,2]
[330285158,1719230928673,273.37336231,9.9e-05,2]
[330285159,1719230938739,273.37336231,9.9e-05,2]
[330285160,1719230939211,2000.0,0.00025,59]
[330285161,1719230946891,273.37336231,9.9e-05,2]
[330285163,1719230955937,273.37336231,9.9e-05,2]
[330285164,1719230964670,273.37336231,9.9e-05,2]
[330285165,1719230973389,273.37336231,9.9e-05,2]
[330285166,1719230979472,4689.21379075,0.00012,2]
[330285167,1719230981420,273.37336231,9.9e-05,2]
[330285169,1719230989852,273.37336231,9.9e-05,2]
[330285170,1719230993622,524.41677193,0.00012,2]
[330285171,1719230993662,4473.909269,0.000141,2]
[330285173,1719230997946,273.37336231,9.9e-05,2]
[330285175,1719231007352,273.37336231,9.9e-05,2]
[330285176,1719231016192,273.37336231,9.9e-05,2]
[330285178,1719231024861,273.37336231,9.9e-05,2]
[330285213,1719231033423,273.37336231,9.9e-05,2]
[330285229,1719231038111,-500.0,0.00015122,2]
[330285231,1719231038121,-154.82195475,0.00015152,2]
[330285233,1719231038131,-8.17627206,0.000155,2]
[330285235,1719231038154,-491.82372794,0.000155,2]
[330285237,1719231038164,-510.76039286,0.00015587,2]
[330285239,1719231038178,-5316.76014849,0.00015587,2]
[330285263,1719231041892,273.37336231,9.9e-05,2]
[330285315,1719231043408,-333.92645003,0.00015587,2]
[330285316,1719231043509,-152.91561731,0.00015587,2]
[330285318,1719231043520,-3204.09194207,0.00015587,2]
[330285319,1719231043532,-83.3375809,0.00015587,2]
[330285320,1719231043542,-154.82195475,0.00015588,2]
[330285321,1719231043553,-159.71453487,0.00015635,2]
[330285322,1719231043563,-318.0694556,0.00015656,2]
[330285323,1719231043572,-157.19006853,0.00015658,2]
[330285324,1719231043581,-516.79936011,0.00015722,2]
[330285325,1719231043591,-179.54081427,0.00015722,2]
[330285326,1719231043600,-3044.20396844,0.00015744,2]
[330285327,1719231043610,-1003.40249245,0.00015756,2]
[330285328,1719231043619,-531.11088939,0.00015784,2]
[330285329,1719231043628,-401.65252924,0.00015838,2]
[330285330,1719231043638,-154.82195475,0.00015883,2]
[330285331,1719231043647,-300.0,0.00015898,2]
[330285332,1719231043656,-2390.29600873,0.00015899,2]
[330285333,1719231043666,-154.82195475,0.00015899,2]
[330285334,1719231043675,-970.23166244,0.000159,2]
[330285335,1719231043684,-970.23166243,0.00015919,2]
[330285336,1719231043693,-597.70730701,0.00015934,2]
[330285337,1719231043704,-1772.04554263,0.00015934,2]
[330285381,1719231047704,-154.82195475,0.00015897,2]
[330285382,1719231047714,-5200.73612247,0.00015934,2]
[330285383,1719231047723,-597.70730701,0.00015934,2]
[330285384,1719231047732,-292.99777244,0.00015937,2]
[330285385,1719231047742,-970.23166243,0.00015938,2]
[330285386,1719231047751,-723.78639686,0.00015954,2]
[330285387,1719231047761,-842.64804764,0.00015955,2]
[330285388,1719231047770,-154.82195475,0.00015955,2]
[330285389,1719231047780,-970.23166243,0.00015957,2]
[330285390,1719231047789,-970.23166243,0.00015976,2]
[330285391,1719231047797,-9859.52981414,0.00015996,2]
[330285392,1719231050179,273.37336231,9.9e-05,2]
[330285393,1719231058610,273.37336231,9.9e-05,2]
[330285394,1719231068143,273.37336231,9.9e-05,2]
[330285395,1719231076504,273.37336231,9.9e-05,2]
[330285396,1719231079661,5000.0,0.00025999,120]
[330285397,1719231084647,273.37336231,9.9e-05,2]
[330285398,1719231093650,273.37336231,9.9e-05,2]
[330285403,1719231101676,273.37336231,9.9e-05,2]
[330285404,1719231110024,273.37336231,9.9e-05,2]
[330285405,1719231118496,273.37336231,9.9e-05,2]
[330285406,1719231126874,273.37336231,9.9e-05,2]
[330285407,1719231135858,273.37336231,9.9e-05,2]
[330285408,1719231144647,273.37336231,9.9e-05,2]
[330285409,1719231153007,273.37336231,9.9e-05,2]
[330285410,1719231162197,273.37336231,9.9e-05,2]
[330285411,1719231178499,273.37336231,9.9e-05,2]
[330285412,1719231186587,273.37336231,9.9e-05,2]
[330285413,1719231194902,273.37336231,9.9e-05,2]
[330285414,1719231203505,273.37336231,9.9e-05,2]
[330285415,1719231209872,3000.0,0.000225,30]
[330285416,1719231212095,245.5391087,0.00012,2]
[330285417,1719231212493,1670.98225881,0.00012,2]
[330285418,1719231212525,273.37336231,9.9e-05,2]
[330285419,1719231221710,273.37336231,9.9e-05,2]
[330285420,1719231230072,273.37336231,9.9e-05,2]
[330285421,1719231238297,273.37336231,9.9e-05,2]
[330285422,1719231246638,273.37336231,9.9e-05,2]
[330285423,1719231254742,273.37336231,9.9e-05,2]
[330285424,1719231262586,432.74,0.00010959,2]
[330285425,1719231263118,273.37336231,9.9e-05,2]
[330285426,1719231272202,273.37336231,9.9e-05,2]
[330285427,1719231273117,317.12260887,0.00010959,2]
[330285428,1719231273149,43.48739113,0.00010959,2]
[330285429,1719231280627,273.37336231,9.9e-05,2]
[330285430,1719231288949,273.37336231,9.9e-05,2]
[330285431,1719231294186,150.26,0.00010959,2]
[330285432,1719231298107,273.37336231,9.9e-05,2]
[330285433,1719231307669,273.37336231,9.9e-05,2]
[330285434,1719231317120,273.37336231,9.9e-05,2]
[330285435,1719231325642,273.37336231,9.9e-05,2]
[330285436,1719231333690,273.37336231,9.9e-05,2]
[330285437,1719231342075,273.37336231,9.9e-05,2]
[330285438,1719231350756,273.37336231,9.9e-05,2]
[330285440,1719231359782,273.37336231,9.9e-05,2]
[330285441,1719231367967,273.37336231,9.9e-05,2]
[330285442,1719231376382,273.37336231,9.9e-05,2]
[330285443,1719231384435,273.37336231,9.9e-05,2]
[330285444,1719231392806,273.37336231,9.9e-05,2]
[330285445,1719231401013,273.37336231,9.9e-05,2]
[330285446,1719231409445,273.37336231,9.9e-05,2]
[330285447,1719231417989,273.37336231,9.9e-05,2]
[330285449,1719231426949,273.37336231,9.9e-05,2]
[330285450,1719231436226,273.37336231,9.9e-05,2]
[330285451,1719231444914,273.37336231,9.9e-05,2]
[330285453,1719231453284,273.37336231,9.9e-05,2]
[330285454,1719231461596,273.37336231,9.9e-05,2]
[330285455,1719231470894,273.37336231,9.9e-05,2]
[330285456,1719231479337,273.37336231,9.9e-05,2]
[330285457,1719231487399,273.37336231,9.9e-05,2]
[330285458,1719231496431,273.37336231,9.9e-05,2]
[330285459,1719231504646,273.37336231,9.9e-05,2]
[330285460,1719231513246,273.37336231,9.9e-05,2]
[330285461,1719231521653,273.37336231,9.9e-05,2]
[330285462,1719231530108,273.37336231,9.9e-05,2]
[330285463,1719231538368,273.37336231,9.9e-05,2]
[330285464,1719231547470,273.37336231,9.9e-05,2]
[330285465,1719231556789,273.37336231,9.9e-05,2]
[330285466,1719231565817,273.37336231,9.9e-05,2]
[330285467,1719231573861,273.37336231,9.9e-05,2]
[330285469,1719231582876,273.37336231,9.9e-05,2]
[330285471,1719231591105,273.37336231,9.9e-05,2]
[330285472,1719231599380,273.37336231,9.9e-05,2]
[330285473,1719231607863,273.37336231,9.9e-05,2]
[330285474,1719231616295,273.37336231,9.9e-05,2]
[330285475,1719231624664,273.37336231,9.9e-05,2]
[330285476,1719231633885,273.37336231,9.9e-05,2]
[330285477,1719231642292,273.37336231,9.9e-05,2]
[330285478,1719231650632,273.37336231,9.9e-05,2]
[330285479,1719231658815,273.37336231,9.9e-05,2]
[330285480,1719231667026,273.37336231,9.9e-05,2]
[330285481,1719231675535,273.37336231,9.9e-05,2]
[330285482,1719231683717,273.37336231,9.9e-05,2]
[330285484,1719231692242,273.37336231,9.9e-05,2]
[330285486,1719231700630,273.37336231,9.9e-05,2]
[330285487,1719231709296,273.37336231,9.9e-05,2]
[330285488,1719231718270,273.37336231,9.9e-05,2]
[330285489,1719231726547,273.37336231,9.9e-05,2]
[330285490,1719231735104,273.37336231,9.9e-05,2]
[330285491,1719231743970,273.37336231,9.9e-05,2]
[330285492,1719231748202,154.9855816,0.00012,2]
[330285493,1719231752602,273.37336231,9.9e-05,2]
[330285494,1719231760787,273.37336231,9.9e-05,2]
[330285495,1719231761768,155.04315183,0.00012,2]
[330285496,1719231770238,273.37336231,9.9e-05,2]
[330285497,1719231779281,273.37336231,9.9e-05,2]
[330285498,1719231787462,273.37336231,9.9e-05,2]
[330285499,1719231794532,3000.0,0.000225,30]
[330285500,1719231795887,273.37336231,9.9e-05,2]
[330285502,1719231804133,273.37336231,9.9e-05,2]
[330285504,1719231808537,275.47,0.00010959,2]
[330285505,1719231812525,273.37336231,9.9e-05,2]
[330285506,1719231820709,273.37336231,9.9e-05,2]
[330285507,1719231829093,273.37336231,9.9e-05,2]
[330285508,1719231838429,273.37336231,9.9e-05,2]
[330285509,1719231846520,273.37336231,9.9e-05,2]
[330285510,1719231855660,273.37336231,9.9e-05,2]
[330285511,1719231864515,273.37336231,9.9e-05,2]
[330285512,1719231873070,273.37336231,9.9e-05,2]
[330285513,1719231881232,273.37336231,9.9e-05,2]
[330285514,1719231889587,273.37336231,9.9e-05,2]
[330285515,1719231897758,273.37336231,9.9e-05,2]
[330285516,1719231907038,273.37336231,9.9e-05,2]
[330285517,1719231915765,273.37336231,9.9e-05,2]
[330285518,1719231924129,273.37336231,9.9e-05,2]
[330285519,1719231932861,273.37336231,9.9e-05,2]
[330285520,1719231939203,524.41677193,0.00012,2]
[330285521,1719231941411,273.37336231,9.9e-05,2]
[330285522,1719231949593,273.37336231,9.9e-05,2]
[330285523,1719231959614,273.37336231,9.9e-05,2]
[330285524,1719231967798,273.37336231,9.9e-05,2]
[330285526,1719231976669,273.37336231,9.9e-05,2]
[330285527,1719231985226,273.37336231,9.9e-05,2]
[330285528,1719231987204,524.41677193,0.00012,2]
[330285529,1719231993845,273.37336231,9.9e-05,2]
[330285530,1719231994539,420.86,0.00010959,2]
[330285531,1719232001912,273.37336231,9.9e-05,2]
[330285532,1719232005347,159.41,0.00010959,2]
[330285533,1719232010284,273.37336231,9.9e-05,2]
[330285534,1719232016105,797.1,0.00010959,2]
[330285535,1719232018549,273.37336231,9.9e-05,2]
[330285536,1719232027271,273.37336231,9.9e-05,2]
[330285537,1719232036165,273.37336231,9.9e-05,2]
[330285538,1719232044387,273.37336231,9.9e-05,2]
[330285540,1719232053604,273.37336231,9.9e-05,2]
[330285541,1719232057201,524.41677193,0.00012,2]
[330285542,1719232061695,273.37336231,9.9e-05,2]
[330285543,1719232070771,273.37336231,9.9e-05,2]
[330285544,1719232078779,273.37336231,9.9e-05,2]
[330285545,1719232087765,273.37336231,9.9e-05,2]
[330285546,1719232096447,273.37336231,9.9e-05,2]
[330285547,1719232104788,273.37336231,9.9e-05,2]
[330285548,1719232109307,-643.60766263,0.00014417,2]
[330285549,1719232109390,-643.60766263,0.00014417,2]
[330285550,1719232109440,-588.39784113,0.00014417,2]
[330285551,1719232113249,273.37336231,9.9e-05,2]
[330285552,1719232122177,273.37336231,9.9e-05,2]
[330285553,1719232130814,273.37336231,9.9e-05,2]
[330285554,1719232134486,-681.11992595,0.00014417,2]
[330285555,1719232134548,-681.11992595,0.00014417,2]
[330285556,1719232134592,-681.11992595,0.00014417,2]
[330285557,1719232140246,273.37336231,9.9e-05,2]
[330285558,1719232149380,273.37336231,9.9e-05,2]
[330285559,1719232157821,273.37336231,9.9e-05,2]
[330285560,1719232159328,-721.98712151,0.00014417,2]
[330285561,1719232159378,-721.98712151,0.00014417,2]
[330285562,1719232159450,-563.22032679,0.00014417,2]
[330285563,1719232165928,273.37336231,9.9e-05,2]
[330285564,1719232174232,273.37336231,9.9e-05,2]
[330285565,1719232179208,524.41677193,0.00012,2]